[Event "*** Titled Tuesday Blitz"]
[Site "Chess.com"]
[Date "2020.04.28"]
[Round "5"]
[White "ZarinaShafigullina"]
[Black "LucaBrasi1968"]
[Result "1-0"]
[WhiteElo "2216"]
[BlackElo "2461"]
[TimeControl "180+1"]
[EndTime "10:56:36 PDT"]
[Termination "ZarinaShafigullina won on time"]

1. d4 {[%clk 0:03:00.9]} 1... f5 {[%clk 0:02:58.9]} 2. Nf3 {[%clk 0:03:01.8]}
2... Nf6 {[%clk 0:02:58.5]} 3. g3 {[%clk 0:03:02]} 3... e6 {[%clk 0:02:57.9]} 4.
Bg2 {[%clk 0:03:01.3]} 4... Be7 {[%clk 0:02:58.3]} 5. O-O {[%clk 0:03:01.3]}
5... O-O {[%clk 0:02:58.9]} 6. c4 {[%clk 0:03:01.4]} 6... d6 {[%clk 0:02:59.1]}
7. Nc3 {[%clk 0:03:01.4]} 7... Qe8 {[%clk 0:02:59]} 8. Nb5 {[%clk 0:02:58.7]}
8... Bd8 {[%clk 0:02:58.5]} 9. Nd2 {[%clk 0:02:49.2]} 9... Nc6 {[%clk 0:02:50]}
10. d5 {[%clk 0:02:35]} 10... exd5 {[%clk 0:02:41.2]} 11. cxd5 {[%clk
0:02:33.1]} 11... Ne5 {[%clk 0:02:37.9]} 12. Nd4 {[%clk 0:02:32.8]} 12... Bd7
{[%clk 0:02:32]} 13. Re1 {[%clk 0:02:32.3]} 13... Qh5 {[%clk 0:02:26.4]} 14.
N2f3 {[%clk 0:01:57.4]} 14... Nxf3+ {[%clk 0:02:07.3]} 15. Nxf3 {[%clk
0:01:57.1]} 15... Ne4 {[%clk 0:01:59.5]} 16. Nd2 {[%clk 0:01:48.9]} 16... Nf6
{[%clk 0:01:52.4]} 17. Nf3 {[%clk 0:01:46.2]} 17... Re8 {[%clk 0:01:36.7]} 18.
Nd4 {[%clk 0:01:37.8]} 18... Ng4 {[%clk 0:01:30.5]} 19. h3 {[%clk 0:01:36.3]}
19... Ne5 {[%clk 0:01:30.6]} 20. Ne6 {[%clk 0:01:30.4]} 20... Qf7 {[%clk
0:01:09]} 21. Nxd8 {[%clk 0:01:29.3]} 21... Raxd8 {[%clk 0:01:07.4]} 22. Bg5
{[%clk 0:01:28.5]} 22... Rc8 {[%clk 0:01:06]} 23. Rc1 {[%clk 0:01:25.6]} 23...
Ng6 {[%clk 0:01:01.1]} 24. Qd4 {[%clk 0:01:17.2]} 24... b6 {[%clk 0:00:51.3]}
25. Rc3 {[%clk 0:01:02.1]} 25... h6 {[%clk 0:00:50.7]} 26. Bd2 {[%clk 0:00:59]}
26... Bb5 {[%clk 0:00:35.8]} 27. e3 {[%clk 0:00:58.6]} 27... Ne5 {[%clk
0:00:33.9]} 28. Rec1 {[%clk 0:00:54.2]} 28... Re7 {[%clk 0:00:33.5]} 29. f4
{[%clk 0:00:51]} 29... Ng6 {[%clk 0:00:31]} 30. e4 {[%clk 0:00:51.5]} 30... fxe4
{[%clk 0:00:27.1]} 31. Bxe4 {[%clk 0:00:51]} 31... Nf8 {[%clk 0:00:26.9]} 32. g4
{[%clk 0:00:41.5]} 32... Rce8 {[%clk 0:00:26.8]} 33. Bf5 {[%clk 0:00:21.1]}
33... Bd7 {[%clk 0:00:21.1]} 34. Bxd7 {[%clk 0:00:20.2]} 34... Rxd7 {[%clk
0:00:21]} 35. Re3 {[%clk 0:00:18.5]} 35... Rxe3 {[%clk 0:00:18.7]} 36. Bxe3
{[%clk 0:00:18.5]} 36... Re7 {[%clk 0:00:19]} 37. Bd2 {[%clk 0:00:18.1]} 37...
Ng6 {[%clk 0:00:18.9]} 38. Rf1 {[%clk 0:00:17.4]} 38... Qe8 {[%clk 0:00:15.9]}
39. Bc3 {[%clk 0:00:17]} 39... Qf7 {[%clk 0:00:15]} 40. f5 {[%clk 0:00:17]}
40... Ne5 {[%clk 0:00:14.7]} 41. h4 {[%clk 0:00:17.2]} 41... h5 {[%clk
0:00:13.3]} 42. g5 {[%clk 0:00:16.6]} 42... Ng4 {[%clk 0:00:13.6]} 43. f6 {[%clk
0:00:15.4]} 43... gxf6 {[%clk 0:00:13.2]} 44. a3 {[%clk 0:00:10.7]} 44... Re5
{[%clk 0:00:12.2]} 45. gxf6 {[%clk 0:00:09.7]} 45... Rxd5 {[%clk 0:00:11.6]} 46.
Qf4 {[%clk 0:00:08.4]} 46... Rc5 {[%clk 0:00:04.9]} 47. Re1 {[%clk 0:00:08.2]}
47... Kh7 {[%clk 0:00:03.7]} 48. Re7 {[%clk 0:00:08]} 48... Qxe7 {[%clk
0:00:03.1]} 49. fxe7 {[%clk 0:00:08.4]} 49... Re5 {[%clk 0:00:01.6]} 50. Qf7+
{[%clk 0:00:07.9]} 50... Kh6 {[%clk 0:00:01.2]} 51. Bxe5 {[%clk 0:00:08.1]}
51... Nxe5 {[%clk 0:00:01.1]} 52. Qf6+ {[%clk 0:00:08.4]} 1-0

[Event "*** Titled Tuesday Blitz"]
[Site "Chess.com"]
[Date "2020.04.28"]
[Round "5"]
[White "quesfr"]
[Black "Muguet7"]
[Result "1-0"]
[WhiteElo "2238"]
[BlackElo "2468"]
[TimeControl "180+1"]
[EndTime "10:56:37 PDT"]
[Termination "quesfr won by checkmate"]

1. e4 {[%clk 0:03:00.9]} 1... c5 {[%clk 0:02:59.5]} 2. c3 {[%clk 0:03:00.3]}
2... Nf6 {[%clk 0:02:58.6]} 3. e5 {[%clk 0:03:00.5]} 3... Nd5 {[%clk 0:02:58.6]}
4. Nf3 {[%clk 0:03:01.2]} 4... e6 {[%clk 0:02:58]} 5. g3 {[%clk 0:03:00.4]} 5...
Nc6 {[%clk 0:02:57.2]} 6. Bg2 {[%clk 0:03:00.5]} 6... d6 {[%clk 0:02:56.6]} 7.
exd6 {[%clk 0:03:01.4]} 7... Bxd6 {[%clk 0:02:56.7]} 8. O-O {[%clk 0:03:02]}
8... O-O {[%clk 0:02:56.9]} 9. d4 {[%clk 0:03:02.9]} 9... Qe7 {[%clk 0:02:50.3]}
10. c4 {[%clk 0:02:42.3]} 10... Nf6 {[%clk 0:02:48.2]} 11. Be3 {[%clk
0:02:37.1]} 11... cxd4 {[%clk 0:02:40.8]} 12. Nxd4 {[%clk 0:02:37.2]} 12... Ne5
{[%clk 0:02:34.3]} 13. Nb5 {[%clk 0:02:13]} 13... Bb8 {[%clk 0:02:26.6]} 14. Qe2
{[%clk 0:01:56.8]} 14... a6 {[%clk 0:02:22.6]} 15. N5c3 {[%clk 0:01:50.8]} 15...
Neg4 {[%clk 0:01:50.2]} 16. Bg5 {[%clk 0:01:50.7]} 16... Qc5 {[%clk 0:01:36.3]}
17. Bc1 {[%clk 0:01:08.8]} 17... Ba7 {[%clk 0:01:18.6]} 18. Nd2 {[%clk
0:01:02.1]} 18... Nxf2 {[%clk 0:01:06.3]} 19. Rxf2 {[%clk 0:00:53.9]} 19...
Qxf2+ {[%clk 0:00:43.5]} 20. Qxf2 {[%clk 0:00:53.1]} 20... Bxf2+ {[%clk
0:00:44.1]} 21. Kxf2 {[%clk 0:00:53.1]} 21... e5 {[%clk 0:00:44.4]} 22. Nf3
{[%clk 0:00:40.4]} 22... e4 {[%clk 0:00:40.8]} 23. Ng5 {[%clk 0:00:32.8]} 23...
Ng4+ {[%clk 0:00:40.8]} 24. Kg1 {[%clk 0:00:29.4]} 24... f5 {[%clk 0:00:41]} 25.
Nd5 {[%clk 0:00:14.8]} 25... h6 {[%clk 0:00:40.5]} 26. Nh3 {[%clk 0:00:14.2]}
26... g5 {[%clk 0:00:36.7]} 27. Nf2 {[%clk 0:00:10.8]} 27... Ne5 {[%clk
0:00:35.6]} 28. b3 {[%clk 0:00:06.3]} 28... Bd7 {[%clk 0:00:30.7]} 29. Bb2
{[%clk 0:00:06.2]} 29... Rae8 {[%clk 0:00:29.2]} 30. Rd1 {[%clk 0:00:05.3]}
30... Bc6 {[%clk 0:00:22.6]} 31. g4 {[%clk 0:00:05.6]} 31... Bxd5 {[%clk
0:00:20.4]} 32. Rxd5 {[%clk 0:00:04.4]} 32... Nf3+ {[%clk 0:00:18.4]} 33. Bxf3
{[%clk 0:00:03.7]} 33... exf3 {[%clk 0:00:18.7]} 34. Kf1 {[%clk 0:00:03.4]}
34... fxg4 {[%clk 0:00:17.8]} 35. Nxg4 {[%clk 0:00:03.6]} 35... Re6 {[%clk
0:00:16.1]} 36. Rd7 {[%clk 0:00:03]} 36... Rg6 {[%clk 0:00:16.1]} 37. Ne5 {[%clk
0:00:03]} 37... Rg7 {[%clk 0:00:15.6]} 38. Rxg7+ {[%clk 0:00:03]} 38... Kxg7
{[%clk 0:00:15.9]} 39. Nd7+ {[%clk 0:00:03.5]} 39... Kf7 {[%clk 0:00:16.1]} 40.
Nxf8 {[%clk 0:00:03.7]} 40... Kxf8 {[%clk 0:00:16.5]} 41. Kf2 {[%clk 0:00:03.9]}
41... g4 {[%clk 0:00:16.9]} 42. Bd4 {[%clk 0:00:03.7]} 42... h5 {[%clk
0:00:16.5]} 43. Kg3 {[%clk 0:00:04]} 43... Kf7 {[%clk 0:00:16.8]} 44. Kh4 {[%clk
0:00:04.4]} 44... Kg6 {[%clk 0:00:17.1]} 45. Bf2 {[%clk 0:00:03.5]} 45... Kh6
{[%clk 0:00:14.9]} 46. Be3+ {[%clk 0:00:03.1]} 46... Kg6 {[%clk 0:00:15.1]} 47.
b4 {[%clk 0:00:03.3]} 47... Kf5 {[%clk 0:00:14.6]} 48. Kxh5 {[%clk 0:00:03.2]}
48... Ke4 {[%clk 0:00:14.9]} 49. Bf2 {[%clk 0:00:03.2]} 49... Kf4 {[%clk
0:00:14.5]} 50. c5 {[%clk 0:00:03]} 50... g3 {[%clk 0:00:14.8]} 51. hxg3+ {[%clk
0:00:02.9]} 51... Ke4 {[%clk 0:00:15.1]} 52. Kg4 {[%clk 0:00:03.1]} 52... Kd3
{[%clk 0:00:15.4]} 53. Kxf3 {[%clk 0:00:03.1]} 53... Kc4 {[%clk 0:00:16]} 54.
Be1 {[%clk 0:00:03.1]} 54... Kd3 {[%clk 0:00:15.6]} 55. Kf4 {[%clk 0:00:04]}
55... Kc2 {[%clk 0:00:15.9]} 56. g4 {[%clk 0:00:03.9]} 56... Kd1 {[%clk
0:00:16.2]} 57. Bg3 {[%clk 0:00:03.6]} 57... Ke2 {[%clk 0:00:16.1]} 58. g5
{[%clk 0:00:04]} 58... Kd3 {[%clk 0:00:17]} 59. g6 {[%clk 0:00:04.4]} 59... Kc4
{[%clk 0:00:17.9]} 60. g7 {[%clk 0:00:04.9]} 60... Kxb4 {[%clk 0:00:18.8]} 61.
g8=Q {[%clk 0:00:05.8]} 61... Kxc5 {[%clk 0:00:19.2]} 62. Bf2+ {[%clk
0:00:05.8]} 62... Kb5 {[%clk 0:00:19.5]} 63. Qb3+ {[%clk 0:00:05.7]} 63... Ka5
{[%clk 0:00:19.1]} 64. Be1# {[%clk 0:00:05.2]} 1-0

[Event "*** Titled Tuesday Blitz"]
[Site "Chess.com"]
[Date "2020.04.28"]
[Round "5"]
[White "Mashenka97"]
[Black "chessuriel"]
[Result "0-1"]
[WhiteElo "2346"]
[BlackElo "2222"]
[TimeControl "180+1"]
[EndTime "10:56:40 PDT"]
[Termination "chessuriel won on time"]

1. e4 {[%clk 0:03:00.9]} 1... c5 {[%clk 0:02:59.5]} 2. Nf3 {[%clk 0:02:59.7]}
2... e6 {[%clk 0:03:00.4]} 3. d4 {[%clk 0:02:58.5]} 3... cxd4 {[%clk 0:03:01.3]}
4. Nxd4 {[%clk 0:02:59.4]} 4... Nc6 {[%clk 0:03:01.5]} 5. Nc3 {[%clk 0:02:58.9]}
5... Qc7 {[%clk 0:03:01.5]} 6. Be3 {[%clk 0:02:58.4]} 6... Nf6 {[%clk 0:03:01]}
7. Be2 {[%clk 0:02:57.4]} 7... Bb4 {[%clk 0:03:01.2]} 8. Bf3 {[%clk 0:02:46.2]}
8... O-O {[%clk 0:02:59.9]} 9. Nxc6 {[%clk 0:02:44.1]} 9... bxc6 {[%clk
0:02:58.8]} 10. O-O {[%clk 0:02:43.3]} 10... d5 {[%clk 0:02:52.8]} 11. exd5
{[%clk 0:02:41.2]} 11... cxd5 {[%clk 0:02:51.5]} 12. Re1 {[%clk 0:02:39]} 12...
Bb7 {[%clk 0:02:45.7]} 13. Bd4 {[%clk 0:02:36.9]} 13... Be7 {[%clk 0:02:42.7]}
14. Qe2 {[%clk 0:02:15.7]} 14... Rfc8 {[%clk 0:02:41.5]} 15. Rad1 {[%clk
0:02:05.4]} 15... Qc4 {[%clk 0:02:38.3]} 16. Qe5 {[%clk 0:02:03.1]} 16... Qc7
{[%clk 0:02:34.7]} 17. Qg5 {[%clk 0:01:57.2]} 17... h6 {[%clk 0:02:27.7]} 18.
Qh4 {[%clk 0:01:50.4]} 18... a5 {[%clk 0:02:25.1]} 19. Qh3 {[%clk 0:01:39.6]}
19... a4 {[%clk 0:02:21.3]} 20. Rd2 {[%clk 0:01:31.7]} 20... a3 {[%clk
0:02:18.8]} 21. bxa3 {[%clk 0:01:23.1]} 21... Rxa3 {[%clk 0:02:16]} 22. Nb5
{[%clk 0:01:21.4]} 22... Qa5 {[%clk 0:02:11.7]} 23. Nxa3 {[%clk 0:01:05.4]}
23... Qxd2 {[%clk 0:02:10.9]} 24. Rd1 {[%clk 0:01:04.2]} 24... Qa5 {[%clk
0:01:57.7]} 25. Nb1 {[%clk 0:01:02.1]} 25... Rxc2 {[%clk 0:01:55.1]} 26. a3
{[%clk 0:00:51.6]} 26... Ba6 {[%clk 0:01:42.8]} 27. Qg3 {[%clk 0:00:43.7]} 27...
Qc7 {[%clk 0:01:31.8]} 28. Be5 {[%clk 0:00:40.5]} 28... Qb7 {[%clk 0:01:25.3]}
29. Nd2 {[%clk 0:00:32.2]} 29... Bd3 {[%clk 0:01:17.5]} 30. Nf1 {[%clk 0:00:28]}
30... Be2 {[%clk 0:01:03.4]} 31. Bxe2 {[%clk 0:00:26.1]} 31... Rxe2 {[%clk
0:01:03.1]} 32. Qc3 {[%clk 0:00:22.4]} 32... Ra2 {[%clk 0:00:59.8]} 33. Ne3
{[%clk 0:00:19.8]} 33... Rxa3 {[%clk 0:00:57.2]} 34. Qd4 {[%clk 0:00:18.4]}
34... Qb4 {[%clk 0:00:51.8]} 35. Bxf6 {[%clk 0:00:15.6]} 35... gxf6 {[%clk
0:00:45.7]} 36. Qxb4 {[%clk 0:00:13.2]} 36... Bxb4 {[%clk 0:00:45.2]} 37. Nc2
{[%clk 0:00:13.5]} 37... Rb3 {[%clk 0:00:42.2]} 38. Kf1 {[%clk 0:00:12.5]} 38...
Bc5 {[%clk 0:00:40.2]} 39. Rd2 {[%clk 0:00:11.3]} 39... Rb2 {[%clk 0:00:38.6]}
40. Ke2 {[%clk 0:00:12.2]} 40... Kf8 {[%clk 0:00:36.2]} 41. f3 {[%clk
0:00:09.5]} 41... Ke7 {[%clk 0:00:35.6]} 42. Kd3 {[%clk 0:00:08.5]} 42... Rb3+
{[%clk 0:00:34.2]} 43. Ke2 {[%clk 0:00:07.1]} 43... Rb2 {[%clk 0:00:33]} 44. Kd3
{[%clk 0:00:05.6]} 44... Rb1 {[%clk 0:00:30.6]} 45. Re2 {[%clk 0:00:03.4]} 45...
Rh1 {[%clk 0:00:28.5]} 46. Kc3 {[%clk 0:00:04.3]} 46... Rxh2 {[%clk 0:00:26.7]}
47. Kd3 {[%clk 0:00:03.6]} 47... Rh1 {[%clk 0:00:25.3]} 48. Kd2 {[%clk
0:00:04.5]} 48... Rb1 {[%clk 0:00:24.5]} 49. Kd3 {[%clk 0:00:03.1]} 49... Rb3+
{[%clk 0:00:23.7]} 50. Kd2 {[%clk 0:00:04]} 50... Kd6 {[%clk 0:00:22.5]} 51. Kc1
{[%clk 0:00:04.1]} 51... e5 {[%clk 0:00:20.4]} 52. Kd2 {[%clk 0:00:05]} 52...
Rb2 {[%clk 0:00:20.2]} 53. Kc1 {[%clk 0:00:02.1]} 53... Rb3 {[%clk 0:00:19.8]}
54. Rd2 {[%clk 0:00:03]} 54... Be3 {[%clk 0:00:17.9]} 55. Kd1 {[%clk 0:00:03.4]}
55... Bxd2 {[%clk 0:00:17.5]} 56. Kxd2 {[%clk 0:00:03.9]} 56... Rb1 {[%clk
0:00:17.3]} 0-1

[Event "*** Titled Tuesday Blitz"]
[Site "Chess.com"]
[Date "2020.04.28"]
[Round "5"]
[White "noblerone"]
[Black "Toro1234"]
[Result "1-0"]
[WhiteElo "2437"]
[BlackElo "2618"]
[TimeControl "180+1"]
[EndTime "10:56:46 PDT"]
[Termination "noblerone won by checkmate"]

1. d4 {[%clk 0:03:00.9]} 1... d5 {[%clk 0:02:55.3]} 2. Nf3 {[%clk 0:03:00.8]}
2... c6 {[%clk 0:02:54.4]} 3. Bf4 {[%clk 0:02:56.9]} 3... Bg4 {[%clk 0:02:52.8]}
4. Nbd2 {[%clk 0:02:56]} 4... Nf6 {[%clk 0:02:51.4]} 5. e3 {[%clk 0:02:55.8]}
5... Nbd7 {[%clk 0:02:51.3]} 6. c4 {[%clk 0:02:55.7]} 6... e6 {[%clk 0:02:51]}
7. Qb3 {[%clk 0:02:55.2]} 7... Qc8 {[%clk 0:02:48.7]} 8. Rc1 {[%clk 0:02:54.3]}
8... Be7 {[%clk 0:02:46.5]} 9. h3 {[%clk 0:02:54.3]} 9... Bh5 {[%clk 0:02:45.6]}
10. Bd3 {[%clk 0:02:54.1]} 10... O-O {[%clk 0:02:44.9]} 11. O-O {[%clk
0:02:52.3]} 11... Bg6 {[%clk 0:02:43.7]} 12. Bxg6 {[%clk 0:02:34.8]} 12... hxg6
{[%clk 0:02:44.6]} 13. Rfe1 {[%clk 0:02:34.4]} 13... Re8 {[%clk 0:02:44.1]} 14.
e4 {[%clk 0:02:31.3]} 14... Nxe4 {[%clk 0:02:43.9]} 15. Nxe4 {[%clk 0:02:32.2]}
15... dxe4 {[%clk 0:02:44.4]} 16. Rxe4 {[%clk 0:02:32.8]} 16... Nf6 {[%clk
0:02:45.3]} 17. Ree1 {[%clk 0:02:32.3]} 17... b6 {[%clk 0:02:34.6]} 18. Ne5
{[%clk 0:02:24.7]} 18... Qb7 {[%clk 0:02:33.6]} 19. Rcd1 {[%clk 0:02:03.8]}
19... Rad8 {[%clk 0:02:31.6]} 20. Bg5 {[%clk 0:01:48.7]} 20... Nd7 {[%clk
0:02:30.1]} 21. Bxe7 {[%clk 0:01:47.5]} 21... Rxe7 {[%clk 0:02:29.7]} 22. Nf3
{[%clk 0:01:39.8]} 22... Nf6 {[%clk 0:02:28.3]} 23. Rd3 {[%clk 0:01:35.2]} 23...
Red7 {[%clk 0:02:27.7]} 24. Red1 {[%clk 0:01:35.8]} 24... Qc7 {[%clk 0:02:24.5]}
25. Ne5 {[%clk 0:01:33.3]} 25... Rd6 {[%clk 0:02:24.2]} 26. Qc2 {[%clk 0:01:24]}
26... c5 {[%clk 0:02:20.3]} 27. Nf3 {[%clk 0:01:18.3]} 27... Kf8 {[%clk
0:02:10.6]} 28. dxc5 {[%clk 0:01:14.9]} 28... Qxc5 {[%clk 0:02:08.4]} 29. b3
{[%clk 0:01:13.2]} 29... Rxd3 {[%clk 0:02:00.9]} 30. Rxd3 {[%clk 0:01:14.1]}
30... Rxd3 {[%clk 0:02:01.2]} 31. Qxd3 {[%clk 0:01:14.7]} 31... Ke7 {[%clk
0:02:01.4]} 32. g3 {[%clk 0:01:09.2]} 32... Nd7 {[%clk 0:01:57.4]} 33. Qc3
{[%clk 0:01:06.2]} 33... f6 {[%clk 0:01:55.4]} 34. Nh4 {[%clk 0:01:05.8]} 34...
g5 {[%clk 0:01:54.7]} 35. Nf3 {[%clk 0:01:04.9]} 35... e5 {[%clk 0:01:51.5]} 36.
h4 {[%clk 0:01:05.1]} 36... gxh4 {[%clk 0:01:48.4]} 37. Nxh4 {[%clk 0:01:06]}
37... Nf8 {[%clk 0:01:42.4]} 38. Qd3 {[%clk 0:01:02.8]} 38... Qc6 {[%clk
0:01:34.1]} 39. Nf5+ {[%clk 0:01:00.6]} 39... Kf7 {[%clk 0:01:33.8]} 40. Qd8
{[%clk 0:00:53.2]} 40... Qd7 {[%clk 0:01:30.9]} 41. Nd6+ {[%clk 0:00:46.8]}
41... Kg8 {[%clk 0:01:28.6]} 42. Qb8 {[%clk 0:00:33.8]} 42... e4 {[%clk
0:01:23.7]} 43. Nxe4 {[%clk 0:00:29.9]} 43... Qe7 {[%clk 0:01:22.4]} 44. Qf4
{[%clk 0:00:28.7]} 44... Ng6 {[%clk 0:01:21]} 45. Qe3 {[%clk 0:00:26.6]} 45...
Qd7 {[%clk 0:01:16.1]} 46. Qd2 {[%clk 0:00:24.3]} 46... Qe7 {[%clk 0:01:15.9]}
47. Qd5+ {[%clk 0:00:24.1]} 47... Kf8 {[%clk 0:01:14.1]} 48. Nd6 {[%clk
0:00:22.2]} 48... Qd7 {[%clk 0:01:06]} 49. a4 {[%clk 0:00:18.9]} 49... Ne5
{[%clk 0:01:04.5]} 50. f4 {[%clk 0:00:16.9]} 50... Nc6 {[%clk 0:01:03.6]} 51. c5
{[%clk 0:00:14.3]} 51... bxc5 {[%clk 0:00:53.1]} 52. Qxc5 {[%clk 0:00:15.2]}
52... Ne7 {[%clk 0:00:53.7]} 53. Ne4 {[%clk 0:00:12.5]} 53... Qd3 {[%clk
0:00:47.3]} 54. Qc4 {[%clk 0:00:09.8]} 54... Qe3+ {[%clk 0:00:45.1]} 55. Kg2
{[%clk 0:00:09.6]} 55... a5 {[%clk 0:00:40.9]} 56. b4 {[%clk 0:00:03.3]} 56...
axb4 {[%clk 0:00:39.5]} 57. Qxb4 {[%clk 0:00:04.2]} 57... Kf7 {[%clk 0:00:39.9]}
58. Qc4+ {[%clk 0:00:04]} 58... Kg6 {[%clk 0:00:39.2]} 59. Nf2 {[%clk
0:00:04.3]} 59... Nf5 {[%clk 0:00:37.7]} 60. Qd3 {[%clk 0:00:03.9]} 60... Qc1
{[%clk 0:00:28]} 61. g4 {[%clk 0:00:03.8]} 61... Kh6 {[%clk 0:00:26.1]} 62. Qxf5
{[%clk 0:00:03.7]} 62... Qc6+ {[%clk 0:00:24.6]} 63. Qe4 {[%clk 0:00:04.1]}
63... Qc3 {[%clk 0:00:22.7]} 64. Qf3 {[%clk 0:00:05]} 64... Qb4 {[%clk 0:00:22]}
65. Qh3+ {[%clk 0:00:05.9]} 65... Kg6 {[%clk 0:00:21]} 66. Qh5# {[%clk
0:00:06.7]} 1-0

[Event "*** Titled Tuesday Blitz"]
[Site "Chess.com"]
[Date "2020.04.28"]
[Round "5"]
[White "827883"]
[Black "gvanna"]
[Result "1/2-1/2"]
[WhiteElo "2182"]
[BlackElo "2465"]
[TimeControl "180+1"]
[EndTime "10:56:48 PDT"]
[Termination "Game drawn by repetition"]

1. e4 {[%clk 0:02:56.8]} 1... c5 {[%clk 0:02:59.9]} 2. Nf3 {[%clk 0:02:56.9]}
2... Nc6 {[%clk 0:03:00.1]} 3. d4 {[%clk 0:02:57.3]} 3... cxd4 {[%clk
0:03:00.2]} 4. Nxd4 {[%clk 0:02:58.2]} 4... g6 {[%clk 0:03:00.8]} 5. Nc3 {[%clk
0:02:58.5]} 5... Bg7 {[%clk 0:03:00.8]} 6. Be3 {[%clk 0:02:59.1]} 6... Nf6
{[%clk 0:03:01]} 7. Bc4 {[%clk 0:02:59.5]} 7... Qa5 {[%clk 0:03:00.8]} 8. O-O
{[%clk 0:02:59.4]} 8... O-O {[%clk 0:03:00.6]} 9. Bb3 {[%clk 0:02:59.3]} 9... d6
{[%clk 0:03:00.5]} 10. h3 {[%clk 0:02:59.1]} 10... Bd7 {[%clk 0:03:00.2]} 11. f4
{[%clk 0:02:58.5]} 11... Rac8 {[%clk 0:02:57.7]} 12. Kh1 {[%clk 0:02:50.4]}
12... a6 {[%clk 0:02:55.8]} 13. Qe1 {[%clk 0:02:46.9]} 13... Nxd4 {[%clk
0:02:45.6]} 14. Bxd4 {[%clk 0:02:46.3]} 14... Bc6 {[%clk 0:02:45.2]} 15. Rd1
{[%clk 0:02:42.1]} 15... e5 {[%clk 0:02:42.8]} 16. Be3 {[%clk 0:02:37.3]} 16...
Nh5 {[%clk 0:02:39.5]} 17. f5 {[%clk 0:02:19.1]} 17... Nf4 {[%clk 0:02:21.6]}
18. g3 {[%clk 0:01:42.8]} 18... Nh5 {[%clk 0:01:56.5]} 19. Rxd6 {[%clk
0:01:42.5]} 19... gxf5 {[%clk 0:01:33.6]} 20. Rxf5 {[%clk 0:01:42]} 20... Bxe4+
{[%clk 0:01:33.5]} 21. Kh2 {[%clk 0:01:30.6]} 21... Bxf5 {[%clk 0:01:33.4]} 22.
Bb6 {[%clk 0:01:30.8]} 22... Qb4 {[%clk 0:01:25.4]} 23. Qd1 {[%clk 0:01:17.4]}
23... Nf6 {[%clk 0:01:11.2]} 24. a3 {[%clk 0:01:16.2]} 24... Bxc2 {[%clk
0:01:00.3]} 25. axb4 {[%clk 0:00:58.3]} 25... Bxd1 {[%clk 0:00:59.6]} 26. Rxd1
{[%clk 0:00:59.2]} 26... Rc6 {[%clk 0:00:47.7]} 27. Bc5 {[%clk 0:00:56]} 27...
Ra8 {[%clk 0:00:32.3]} 28. Ba4 {[%clk 0:00:52]} 28... Rcc8 {[%clk 0:00:26.8]}
29. Bb6 {[%clk 0:00:52]} 29... Bf8 {[%clk 0:00:22.9]} 30. Rf1 {[%clk 0:00:43.8]}
30... Kg7 {[%clk 0:00:23]} 31. g4 {[%clk 0:00:31.8]} 31... h6 {[%clk 0:00:23.2]}
32. b5 {[%clk 0:00:27.3]} 32... axb5 {[%clk 0:00:22.9]} 33. Bxb5 {[%clk
0:00:27.6]} 33... Bb4 {[%clk 0:00:20]} 34. Rf3 {[%clk 0:00:21.7]} 34... Bxc3
{[%clk 0:00:19.3]} 35. bxc3 {[%clk 0:00:22.6]} 35... Ra2+ {[%clk 0:00:19.4]} 36.
Kg3 {[%clk 0:00:22.8]} 36... Ne4+ {[%clk 0:00:18.6]} 37. Kh4 {[%clk 0:00:23.2]}
37... Nxc3 {[%clk 0:00:18.7]} 38. Bd7 {[%clk 0:00:21]} 38... Rc4 {[%clk
0:00:16.1]} 39. Bd8 {[%clk 0:00:18.5]} 39... Nd5 {[%clk 0:00:15.6]} 40. Bf5
{[%clk 0:00:14.8]} 40... Rc3 {[%clk 0:00:15]} 41. Rf1 {[%clk 0:00:12.5]} 41...
Raa3 {[%clk 0:00:15.2]} 42. g5 {[%clk 0:00:12.7]} 42... hxg5+ {[%clk 0:00:12]}
43. Bxg5 {[%clk 0:00:13.6]} 43... f6 {[%clk 0:00:12.1]} 44. Bd2 {[%clk
0:00:13.1]} 44... Rf3 {[%clk 0:00:10.2]} 45. Rg1+ {[%clk 0:00:12.4]} 45... Kf7
{[%clk 0:00:08.7]} 46. Bg4 {[%clk 0:00:12.3]} 46... Rfd3 {[%clk 0:00:07.7]} 47.
Bc1 {[%clk 0:00:12.9]} 47... Nf4 {[%clk 0:00:07.9]} 48. Bxa3 {[%clk 0:00:12.3]}
48... Rxa3 {[%clk 0:00:08.5]} 49. Rb1 {[%clk 0:00:12.5]} 49... Ra7 {[%clk
0:00:07.9]} 50. Bf3 {[%clk 0:00:12.4]} 50... Kg6 {[%clk 0:00:07.5]} 51. Bxb7
{[%clk 0:00:12.5]} 51... Ra3 {[%clk 0:00:07.5]} 52. Be4+ {[%clk 0:00:12.8]}
52... Kh6 {[%clk 0:00:07.7]} 53. Bf5 {[%clk 0:00:11.5]} 53... Re3 {[%clk
0:00:06.9]} 54. Rb8 {[%clk 0:00:11.6]} 54... Ng6+ {[%clk 0:00:06.7]} 55. Kg4
{[%clk 0:00:11.6]} 55... Ne7 {[%clk 0:00:04.7]} 56. Rh8+ {[%clk 0:00:11.5]}
56... Kg7 {[%clk 0:00:04.9]} 57. Rh7+ {[%clk 0:00:12.2]} 57... Kf8 {[%clk
0:00:05.5]} 58. Rh8+ {[%clk 0:00:12.9]} 58... Kg7 {[%clk 0:00:05.5]} 59. Rh7+
{[%clk 0:00:13.2]} 59... Kf8 {[%clk 0:00:06]} 60. Rh8+ {[%clk 0:00:13.7]} 60...
Kf7 {[%clk 0:00:06.1]} 61. Rh7+ {[%clk 0:00:13.6]} 61... Kf8 {[%clk 0:00:06.6]}
1/2-1/2